{"text_format":"1","workbook":"xlsx","n_sheets":3,"sheets":["ote","التحضيري","السنة الاولى"],"not_rendered":{"charts":0,"images":0,"macros":1,"external_links":0,"defined_names":0,"comments":0,"pivot_tables":0},"unopened":[],"bounds":{"document_bytes":16777216,"sheet_cells":100000,"rows_first":2000,"rows_last":500,"rows_between":2000,"halvings":0,"cell_chars":16384,"cell_head_chars":4096},"cells_cut":0,"cells_raw":0,"read":"whole","date_system":"1900"}

{"sheet":"ote","index":0,"n_rows":37,"n_cols":8,"rows_kept":37,"cut":false,"hidden":false,"merged":[[8,1,8,2],[7,1,7,2],[29,6,32,6],[33,6,36,6],[10,1,10,2],[9,1,9,2],[12,1,12,3],[12,6,12,7],[13,6,16,6],[17,6,20,6],[21,6,24,6],[25,6,28,6]]}
[]
[]
[]
[]
[]
[]
[]
[null,"مديرية التربية لولاية : ",null,"الجزائر"]
[null,"مفتشيــة التعليــم الابتدائي :",null,"براقي"]
[null,"ابتــــــــــــــدائيـــــة :",null,"البشير الابراهيمي"]
[null,"الموســم الدراســــي :",null,"2019/2018"]
[]
[null,"الأفـــــــــــــــــــــواج",null,null,null,null,"الاستاذ"]
[null,"التحضيـــــــــري","- أ -",{"$f":"H14","v":"الراشدي 1"},null,null,"التحضيــــــري","الراشدي 1"]
[null,"التحضيـــــــــري","- ب -",{"$f":"H15","v":"الراشدي 2"},null,null,null,"الراشدي 2"]
[null,"التحضيـــــــــري","- ج -",{"$f":"H16","v":"الراشدي 3"},null,null,null,"الراشدي 3"]
[null,"التحضيـــــــــري","- د -","الراشدي 4",null,null,null,"الراشدي 4"]
[null,"السنــــــة الأولــــى","- أ -","الراشدي 5",null,null,"السنـة الأولـى","الراشدي 5"]
[null,"السنــــــة الأولــــى","- ب -","الراشدي 6",null,null,null,"الراشدي 6"]
[null,"السنــــــة الأولــــى","- ج -","الراشدي 7",null,null,null,"الراشدي 7"]
[null,"السنــــــة الأولــــى","- د -","الراشدي 8",null,null,null,"الراشدي 8"]
[null,"السنـــــة الثانيـــــــة","- أ -","الراشدي 9",null,null,"السنــة الثانيـة","الراشدي 9"]
[null,"السنـــــة الثانيـــــــة","- ب -","الراشدي 10",null,null,null,"الراشدي 10"]
[null,"السنـــــة الثانيـــــــة","- ج -","الراشدي 11",null,null,null,"الراشدي 11"]
[null,"السنـــــة الثانيـــــــة","- د -","الراشدي 12",null,null,null,"الراشدي 12"]
[null,"السنـــــة الثالثـــــــة","- أ -","الراشدي 13",null,null,"السنـة الثالثـة","الراشدي 13"]
[null,"السنـــــة الثالثـــــــة","- ب -","الراشدي 14",null,null,null,"الراشدي 14"]
[null,"السنـــــة الثالثـــــــة","- ج -","الراشدي 15",null,null,null,"الراشدي 15"]
[null,"السنـــــة الثالثـــــــة","- د -","الراشدي 16",null,null,null,"الراشدي 16"]
[null,"السنـــــة الـــرابـــعة","- أ -","الراشدي 17",null,null,"السنـة الـرابعة","الراشدي 17"]
[null,"السنـــــة الـــرابـــعة","- ب -","الراشدي 18",null,null,null,"الراشدي 18"]
[null,"السنـــــة الـــرابـــعة","- ج -","الراشدي 19",null,null,null,"الراشدي 19"]
[null,"السنـــــة الـــرابـــعة","- د -","الراشدي 20",null,null,null,"الراشدي 20"]
[null,"السنـــــة الخـامســة","- أ -","الراشدي 21",null,null,"السنة الخامسة","الراشدي 21"]
[null,"السنـــــة الخـامســة","- ب -","الراشدي 22",null,null,null,"الراشدي 22"]
[null,"السنـــــة الخـامســة","- ج -","الراشدي 23",null,null,null,"الراشدي 23"]
[null,"السنـــــة الخـامســة","- د -","الراشدي 24",null,null,null,"الراشدي 24"]

{"sheet":"التحضيري","index":1,"n_rows":84,"n_cols":35,"rows_kept":84,"cut":false,"hidden":false,"merged":[[20,0,20,34],[18,27,18,30],[18,31,18,34],[17,31,17,34],[3,4,3,8],[4,0,4,3],[4,4,4,8],[5,3,5,8],[4,30,4,34],[3,30,3,34],[16,23,16,34],[17,1,17,8],[17,23,17,26],[17,27,17,30],[7,0,7,1],[18,10,18,13],[18,14,18,17],[18,18,18,21],[18,23,18,26],[14,23,14,30],[16,10,16,17],[16,18,16,21],[18,1,18,8],[17,10,17,13],[17,14,17,17],[17,18,17,21],[11,0,13,0],[11,1,11,21],[11,22,13,22],[11,23,11,34],[14,31,14,34],[15,1,15,4],[15,5,15,8],[15,10,15,13],[15,14,15,17],[15,18,15,21],[15,23,15,26],[15,27,15,30],[15,31,15,34],[14,1,14,4],[14,5,14,8],[14,9,18,9],[14,10,14,13],[14,14,14,17],[14,18,14,21],[16,1,16,8],[12,1,12,8],[12,10,12,21],[12,23,12,34],[13,1,13,4],[13,5,13,8],[13,10,13,13],[13,14,13,17],[13,18,13,21],[13,23,13,26],[13,27,13,30],[13,31,13,34],[7,14,7,16],[8,22,8,25],[8,26,8,28],[8,29,8,31],[8,32,8,34],[9,2,9,4],[9,5,9,7],[9,8,9,10],[9,11,9,13],[9,14,9,16],[9,17,9,21],[9,22,9,25],[9,26,9,28],[9,29,9,31],[9,32,9,34],[8,17,8,21],[21,0,21,34],[22,0,22,34],[24,4,24,8],[24,30,24,34],[25,0,25,3],[25,4,25,8],[25,30,25,34],[0,0,0,34],[1,0,1,34],[5,30,5,33],[7,22,7,25],[7,26,7,28],[7,29,7,31],[7,32,7,34],[7,17,7,21],[8,2,8,4],[8,5,8,7],[8,8,8,10],[8,11,8,13],[8,14,8,16],[7,2,7,4],[7,5,7,7],[7,8,7,10],[7,11,7,13],[26,3,26,8],[26,30,26,33],[28,0,28,1],[28,2,28,4],[28,5,28,7],[28,8,28,10],[28,11,28,13],[28,14,28,16],[28,17,28,21],[28,22,28,25],[28,26,28,28],[28,29,28,31],[28,32,28,34],[29,17,29,21],[29,22,29,25],[29,26,29,28],[29,29,29,31],[29,32,29,34],[29,2,29,4],[29,5,29,7],[29,8,29,10],[29,11,29,13],[29,14,29,16],[30,17,30,21],[30,22,30,25],[30,26,30,28],[30,29,30,31],[30,32,30,34],[30,2,30,4],[30,5,30,7],[30,8,30,10],[30,11,30,13],[30,14,30,16],[32,0,34,0],[32,1,32,21],[32,22,34,22],[32,23,32,34],[33,1,33,8],[33,10,33,21],[33,23,33,34],[34,1,34,4],[34,5,34,8],[34,10,34,13],[34,14,34,17],[34,18,34,21],[34,23,34,26],[34,27,34,30],[34,31,34,34],[35,18,35,21],[35,23,35,30],[35,31,35,34],[36,1,36,4],[36,5,36,8],[36,10,36,13],[36,14,36,17],[36,18,36,21],[36,23,36,26],[36,27,36,30],[36,31,36,34],[35,1,35,4],[35,5,35,8],[35,9,39,9],[35,10,35,13],[35,14,35,17],[37,1,37,8],[37,10,37,17],[39,1,39,8],[39,10,39,13],[39,14,39,17],[37,18,37,21],[37,23,37,34],[38,1,38,8],[38,10,38,13],[38,14,38,17],[38,18,38,21],[38,23,38,26],[38,27,38,30],[38,31,38,34],[42,0,42,34],[43,0,43,34],[45,4,45,8],[45,30,45,34],[46,0,46,3],[46,4,46,8],[46,30,46,34],[39,18,39,21],[39,23,39,26],[39,27,39,30],[39,31,39,34],[41,0,41,34],[47,3,47,8],[47,30,47,33],[49,0,49,1],[49,2,49,4],[49,5,49,7],[49,8,49,10],[49,11,49,13],[49,14,49,16],[49,17,49,21],[49,22,49,25],[49,26,49,28],[49,29,49,31],[49,32,49,34],[50,17,50,21],[50,22,50,25],[50,26,50,28],[50,29,50,31],[50,32,50,34],[50,2,50,4],[50,5,50,7],[50,8,50,10],[50,11,50,13],[50,14,50,16],[51,17,51,21],[51,22,51,25],[51,26,51,28],[51,29,51,31],[51,32,51,34],[51,2,51,4],[51,5,51,7],[51,8,51,10],[51,11,51,13],[51,14,51,16],[53,0,55,0],[53,1,53,21],[53,22,55,22],[53,23,53,34],[54,1,54,8],[54,10,54,21],[54,23,54,34],[55,1,55,4],[55,5,55,8],[55,10,55,13],[55,14,55,17],[55,18,55,21],[55,23,55,26],[55,27,55,30],[55,31,55,34],[56,18,56,21],[56,23,56,30],[56,31,56,34],[57,1,57,4],[57,5,57,8],[57,10,57,13],[57,14,57,17],[57,18,57,21],[57,23,57,26],[57,27,57,30],[57,31,57,34],[56,1,56,4],[56,5,56,8],[56,9,60,9],[56,10,56,13],[56,14,56,17],[58,1,58,8],[58,10,58,17],[60,1,60,8],[60,10,60,13],[60,14,60,17],[58,18,58,21],[58,23,58,34],[59,1,59,8],[59,10,59,13],[59,14,59,17],[59,18,59,21],[59,23,59,26],[59,27,59,30],[59,31,59,34],[63,0,63,34],[64,0,64,34],[66,4,66,8],[66,30,66,34],[67,0,67,3],[67,4,67,8],[67,30,67,34],[60,18,60,21],[60,23,60,26],[60,27,60,30],[60,31,60,34],[62,0,62,34],[68,3,68,8],[68,30,68,33],[70,0,70,1],[70,2,70,4],[70,5,70,7],[70,8,70,10],[70,11,70,13],[70,14,70,16],[70,17,70,21],[70,22,70,25],[70,26,70,28],[70,29,70,31],[70,32,70,34],[71,17,71,21],[71,22,71,25],[71,26,71,28],[71,29,71,31],[71,32,71,34],[71,2,71,4],[71,5,71,7],[71,8,71,10],[71,11,71,13],[71,14,71,16],[72,17,72,21],[72,22,72,25],[72,26,72,28],[72,29,72,31],[72,32,72,34],[72,2,72,4],[72,5,72,7],[72,8,72,10],[72,11,72,13],[72,14,72,16],[74,0,76,0],[74,1,74,21],[74,22,76,22],[74,23,74,34],[75,1,75,8],[75,10,75,21],[75,23,75,34],[76,1,76,4],[76,5,76,8],[76,10,76,13],[76,14,76,17],[76,18,76,21],[76,23,76,26],[76,27,76,30],[76,31,76,34],[77,18,77,21],[77,23,77,30],[77,31,77,34],[78,1,78,4],[78,5,78,8],[78,10,78,13],[78,14,78,17],[78,18,78,21],[78,23,78,26],[78,27,78,30],[78,31,78,34],[77,1,77,4],[77,5,77,8],[77,9,81,9],[77,10,77,13],[77,14,77,17],[79,1,79,8],[79,10,79,17],[81,1,81,8],[81,10,81,13],[81,14,81,17],[81,18,81,21],[81,23,81,26],[81,27,81,30],[81,31,81,34],[83,0,83,34],[79,18,79,21],[79,23,79,34],[80,1,80,8],[80,10,80,13],[80,14,80,17],[80,18,80,21],[80,23,80,26],[80,27,80,30],[80,31,80,34]]}
["الجمهورية الجزائرية الديمقراطية الشعبية"]
["وزرارة التربية الوطنية"]
[]
["مديرية التربية لولايــــة : ",null,null,null,{"$f":"ote!D8","v":"الجزائر"},null,null,null,null,null,null,null,null,null,null,null,null,null,null,null,null,null,null,null,null,"الســـــنة الدراسيــة : ",null,null,null,null,{"$f":"ote!D11","v":"2019/2018"}]
["مفتشية التعليم الإبتدائي :",null,null,null,{"$f":"ote!D9","v":"براقي"},null,null,null,null,null,null,null,null,null,null,null,null,null,null,null,null,null,null,null,null,"الأستـــــــاذ(ة) :",null,null,null,null,{"$f":"ote!D14","v":"الراشدي 1"}]
["المدرسة الإبتدائية : ",null,null,{"$f":"ote!D10","v":"البشير الابراهيمي"},null,null,null,null,null,null,null,null,null,null,null,null,null,null,null,null,null,null,null,null,null,"الفـــــــــــــــوج :",null,null,null,null,{"$f":"ote!B14","v":"التحضيـــــــــري"},null,null,null,{"$f":"ote!C14","v":"- أ -"}]
[]
["الأنشطـــــة",null,"لغة عربية",null,null,"رياضيات",null,null,"ت إسلامية",null,null,"ت علمية",null,null,"ت مدنية",null,null,"ت موسقية + تشكلية",null,null,null,null,"تاريخ / جغرافيا",null,null,null,"ت بدنية",null,null,"معالجة تربوبة",null,null,"المجموع"]
["عدد الحصص",null,11,null,null,6,null,null,2,null,null,2,null,null,1,null,null,1,null,null,null,null,2,null,null,null,1,null,null,2,null,null,{"$f":"SUM(C9:AF9)","v":28}]
["الــــــــــزمن",null,{"$f":"45*C9/1440","v":"08:15:00"},null,null,{"$f":"45*F9/1440","v":"04:30:00"},null,null,{"$f":"45*I9/1440","v":"01:30:00"},null,null,{"$f":"45*L9/1440","v":"01:30:00"},null,null,{"$f":"45*O9/1440","v":"00:45:00"},null,null,{"$f":"(45*R9/1440)","v":"00:45:00"},null,null,null,null,{"$f":"45*W9/1440","v":"01:30:00"},null,null,null,{"$f":"60*AA9/1440","v":"01:00:00"},null,null,{"$f":"45*AD9/1440","v":"01:30:00"},null,null,{"$f":"SUM(C10:AF10)","v":"21:15:00"}]
[]
["الأيـــــــــــأم","الفتــــــــــــــــــــــــــــرة الصبــــــــاحيـــــــــــــــــــــــــــــة",null,null,null,null,null,null,null,null,null,null,null,null,null,null,null,null,null,null,null,null,null,"الفتـــــــــــــــــــرة المســـــــــــــــائيـــــــــــــــــة"]
[null,"من 08:00    إلى      09:30",null,null,null,null,null,null,null,null,"من 09:45        إلى            12:00",null,null,null,null,null,null,null,null,null,null,null,null,"من 14:00               إلى                   16:15"]
[null,45,null,null,null,45,null,null,null,15,45,null,null,null,45,null,null,null,45,null,null,null,null,45,null,null,null,45,null,null,null,45]
["الأحـــد","فهم المنطوق",null,null,null,"التعبير الشفوي (صيغ و أساليب)",null,null,null,"إستـراحـــــــــــــــــــــــــــــــــــــــــــــــــــــة","رياضيات",null,null,null,"تربية إسلامية",null,null,null,null,null,null,null,null,"فرنسية",null,null,null,null,null,null,null,"معالجة  فرنسية"]
["الأثنين","الإنتاج الشفوي",null,null,null,"تاريخ",null,null,null,null,"رياضيات",null,null,null,"       قراءة       (أداء و فهم)",null,null,null,"معالجة رياضيات",null,null,null,null,"تربية مدنية",null,null,null,"تربية علمية",null,null,null,"جغرافيا"]
["الثلاثاء","قراءة (تقييم و دمج أفكار و معلومات) الظاهرة التركيبة النحوية",null,null,null,null,null,null,null,null,"فرنسية",null,null,null,null,null,null,null,null,null,null,null,null,"نشاطات لا صفية"]
["الأربعـاء","قراءة (تقييم المضمون و التركيبات)     الظاهرة الصرفية / الاملائية",null,null,null,null,null,null,null,null,"رياضيات",null,null,null,"تربية إسلامية",null,null,null,"محفوظات",null,null,null,null,"رياضيات",null,null,null,"تربية علمية",null,null,null,"تربية بدنية 60د"]
["الخميس","فرنسية",null,null,null,null,null,null,null,null,"رياضيات",null,null,null,"    مطالعة     موجهــة",null,null,null,"معالجة عربية",null,null,null,null,"رياضيات",null,null,null,"الإنتاج الكتابي",null,null,null,"تربية فنية"]
[]
["      الأستاذ (ة):                                    السيد المـديــر :                                                              السيد المفتـش :"]
["الجمهورية الجزائرية الديمقراطية الشعبية"]
["وزرارة التربية الوطنية"]
[]
["مديرية التربية لولايــــة : ",null,null,null,{"$f":"ote!D8","v":"الجزائر"},null,null,null,null,null,null,null,null,null,null,null,null,null,null,null,null,null,null,null,null,"الســـــنة الدراسيــة : ",null,null,null,null,{"$f":"ote!D11","v":"2019/2018"}]
["مفتشية التعليم الإبتدائي :",null,null,null,{"$f":"ote!D9","v":"براقي"},null,null,null,null,null,null,null,null,null,null,null,null,null,null,null,null,null,null,null,null,"الأستـــــــاذ(ة) :",null,null,null,null,{"$f":"ote!D15","v":"الراشدي 2"}]
["المدرسة الإبتدائية : ",null,null,{"$f":"ote!D10","v":"البشير الابراهيمي"},null,null,null,null,null,null,null,null,null,null,null,null,null,null,null,null,null,null,null,null,null,"الفـــــــــــــــوج :",null,null,null,null,{"$f":"ote!B15","v":"التحضيـــــــــري"},null,null,null,{"$f":"ote!C15","v":"- ب -"}]
[]
["الأنشطـــــة",null,"لغة عربية",null,null,"رياضيات",null,null,"ت إسلامية",null,null,"ت علمية",null,null,"ت مدنية",null,null,"ت موسقية + تشكلية",null,null,null,null,"تاريخ / جغرافيا",null,null,null,"ت بدنية",null,null,"معالجة تربوبة",null,null,"المجموع"]
["عدد الحصص",null,11,null,null,6,null,null,2,null,null,2,null,null,1,null,null,1,null,null,null,null,2,null,null,null,1,null,null,2,null,null,{"$f":"SUM(C30:AF30)","v":28}]
["الــــــــــزمن",null,{"$f":"45*C30/1440","v":"08:15:00"},null,null,{"$f":"45*F30/1440","v":"04:30:00"},null,null,{"$f":"45*I30/1440","v":"01:30:00"},null,null,{"$f":"45*L30/1440","v":"01:30:00"},null,null,{"$f":"45*O30/1440","v":"00:45:00"},null,null,{"$f":"(45*R30/1440)","v":"00:45:00"},null,null,null,null,{"$f":"45*W30/1440","v":"01:30:00"},null,null,null,{"$f":"60*AA30/1440","v":"01:00:00"},null,null,{"$f":"45*AD30/1440","v":"01:30:00"},null,null,{"$f":"SUM(C31:AF31)","v":"21:15:00"}]
[]
["الأيـــــــــــأم","الفتــــــــــــــــــــــــــــرة الصبــــــــاحيـــــــــــــــــــــــــــــة",null,null,null,null,null,null,null,null,null,null,null,null,null,null,null,null,null,null,null,null,null,"الفتـــــــــــــــــــرة المســـــــــــــــائيـــــــــــــــــة"]
[null,"من 08:00    إلى      09:30",null,null,null,null,null,null,null,null,"من 09:45        إلى            12:00",null,null,null,null,null,null,null,null,null,null,null,null,"من 14:00               إلى                   16:15"]
[null,45,null,null,null,45,null,null,null,15,45,null,null,null,45,null,null,null,45,null,null,null,null,45,null,null,null,45,null,null,null,45]
["الأحـــد","فهم المنطوق",null,null,null,"التعبير الشفوي (صيغ و أساليب)",null,null,null,"إستـراحـــــــــــــــــــــــــــــــــــــــــــــــــــــة","رياضيات",null,null,null,"تربية إسلامية",null,null,null,null,null,null,null,null,"فرنسية",null,null,null,null,null,null,null,"معالجة لغة فرنسية"]
["الأثنين","الإنتاج الشفوي",null,null,null,"تاريخ",null,null,null,null,"رياضيات",null,null,null,"       قراءة       (أداء و فهم)",null,null,null,"معالجة رياضيات",null,null,null,null,"تربية مدنية",null,null,null,"تربية علمية",null,null,null,"جغرافيا"]
["الثلاثاء","قراءة (تقييم و دمج أفكار و معلومات) الظاهرة التركيبة النحوية",null,null,null,null,null,null,null,null,"فرنسية",null,null,null,null,null,null,null,null,null,null,null,null,"نشاطات لا صفية"]
["الأربعـاء","قراءة (تقييم المضمون و التركيبات)     الظاهرة الصرفية / الاملائية",null,null,null,null,null,null,null,null,"رياضيات",null,null,null,"تربية إسلامية",null,null,null,"محفوظات",null,null,null,null,"رياضيات",null,null,null,"تربية علمية",null,null,null,"تربية بدنية 60د"]
["الخميس","فرنسية",null,null,null,null,null,null,null,null,"رياضيات",null,null,null,"    مطالعة     موجهــة",null,null,null,"معالجة لغة عربية",null,null,null,null,"رياضيات",null,null,null,"الإنتاج الكتابي",null,null,null,"تربية فنية"]
[]
["      الأستاذ (ة):                                    السيد المـديــر :                                                              السيد المفتـش :"]
["الجمهورية الجزائرية الديمقراطية الشعبية"]
["وزرارة التربية الوطنية"]
[]
["مديرية التربية لولايــــة : ",null,null,null,{"$f":"ote!D8","v":"الجزائر"},null,null,null,null,null,null,null,null,null,null,null,null,null,null,null,null,null,null,null,null,"الســـــنة الدراسيــة : ",null,null,null,null,{"$f":"ote!D11","v":"2019/2018"}]
["مفتشية التعليم الإبتدائي :",null,null,null,{"$f":"ote!D9","v":"براقي"},null,null,null,null,null,null,null,null,null,null,null,null,null,null,null,null,null,null,null,null,"الأستـــــــاذ(ة) :",null,null,null,null,{"$f":"ote!D16","v":"الراشدي 3"}]
["المدرسة الإبتدائية : ",null,null,{"$f":"ote!D10","v":"البشير الابراهيمي"},null,null,null,null,null,null,null,null,null,null,null,null,null,null,null,null,null,null,null,null,null,"الفـــــــــــــــوج :",null,null,null,null,{"$f":"ote!B16","v":"التحضيـــــــــري"},null,null,null,{"$f":"ote!C16","v":"- ج -"}]
[]
["الأنشطـــــة",null,"لغة عربية",null,null,"رياضيات",null,null,"ت إسلامية",null,null,"ت علمية",null,null,"ت مدنية",null,null,"ت موسقية + تشكلية",null,null,null,null,"تاريخ / جغرافيا",null,null,null,"ت بدنية",null,null,"معالجة تربوبة",null,null,"المجموع"]
["عدد الحصص",null,11,null,null,6,null,null,2,null,null,2,null,null,1,null,null,1,null,null,null,null,2,null,null,null,1,null,null,2,null,null,{"$f":"SUM(C51:AF51)","v":28}]
["الــــــــــزمن",null,{"$f":"45*C51/1440","v":"08:15:00"},null,null,{"$f":"45*F51/1440","v":"04:30:00"},null,null,{"$f":"45*I51/1440","v":"01:30:00"},null,null,{"$f":"45*L51/1440","v":"01:30:00"},null,null,{"$f":"45*O51/1440","v":"00:45:00"},null,null,{"$f":"(45*R51/1440)","v":"00:45:00"},null,null,null,null,{"$f":"45*W51/1440","v":"01:30:00"},null,null,null,{"$f":"60*AA51/1440","v":"01:00:00"},null,null,{"$f":"45*AD51/1440","v":"01:30:00"},null,null,{"$f":"SUM(C52:AF52)","v":"21:15:00"}]
[]
["الأيـــــــــــأم","الفتــــــــــــــــــــــــــــرة الصبــــــــاحيـــــــــــــــــــــــــــــة",null,null,null,null,null,null,null,null,null,null,null,null,null,null,null,null,null,null,null,null,null,"الفتـــــــــــــــــــرة المســـــــــــــــائيـــــــــــــــــة"]
[null,"من 08:00    إلى      09:30",null,null,null,null,null,null,null,null,"من 09:45        إلى            12:00",null,null,null,null,null,null,null,null,null,null,null,null,"من 14:00               إلى                   16:15"]
[null,45,null,null,null,45,null,null,null,15,45,null,null,null,45,null,null,null,45,null,null,null,null,45,null,null,null,45,null,null,null,45]
["الأحـــد","فهم المنطوق",null,null,null,"التعبير الشفوي (صيغ و أساليب)",null,null,null,"إستـراحـــــــــــــــــــــــــــــــــــــــــــــــــــــة","رياضيات",null,null,null,"تربية إسلامية",null,null,null,null,null,null,null,null,"فرنسية",null,null,null,null,null,null,null,"معالجة لغة فرنسية"]
["الأثنين","الإنتاج الشفوي",null,null,null,"تاريخ",null,null,null,null,"رياضيات",null,null,null,"       قراءة       (أداء و فهم)",null,null,null,"معالجة رياضيات",null,null,null,null,"تربية مدنية",null,null,null,"تربية علمية",null,null,null,"جغرافيا"]
["الثلاثاء","قراءة (تقييم و دمج أفكار و معلومات) الظاهرة التركيبة النحوية",null,null,null,null,null,null,null,null,"فرنسية",null,null,null,null,null,null,null,null,null,null,null,null,"نشاطات لا صفية"]
["الأربعـاء","قراءة (تقييم المضمون و التركيبات)     الظاهرة الصرفية / الاملائية",null,null,null,null,null,null,null,null,"رياضيات",null,null,null,"تربية إسلامية",null,null,null,"محفوظات",null,null,null,null,"رياضيات",null,null,null,"تربية علمية",null,null,null,"تربية بدنية 60د"]
["الخميس","فرنسية",null,null,null,null,null,null,null,null,"رياضيات",null,null,null,"    مطالعة     موجهــة",null,null,null,"معالجة لغة عربية",null,null,null,null,"رياضيات",null,null,null,"الإنتاج الكتابي",null,null,null,"تربية فنية"]
[]
["      الأستاذ (ة):                                    السيد المـديــر :                                                              السيد المفتـش :"]
["الجمهورية الجزائرية الديمقراطية الشعبية"]
["وزرارة التربية الوطنية"]
[]
["مديرية التربية لولايــــة : ",null,null,null,{"$f":"ote!D8","v":"الجزائر"},null,null,null,null,null,null,null,null,null,null,null,null,null,null,null,null,null,null,null,null,"الســـــنة الدراسيــة : ",null,null,null,null,{"$f":"ote!D11","v":"2019/2018"}]
["مفتشية التعليم الإبتدائي :",null,null,null,{"$f":"ote!D9","v":"براقي"},null,null,null,null,null,null,null,null,null,null,null,null,null,null,null,null,null,null,null,null,"الأستـــــــاذ(ة) :",null,null,null,null,{"$f":"ote!D17","v":"الراشدي 4"}]
["المدرسة الإبتدائية : ",null,null,{"$f":"ote!D10","v":"البشير الابراهيمي"},null,null,null,null,null,null,null,null,null,null,null,null,null,null,null,null,null,null,null,null,null,"الفـــــــــــــــوج :",null,null,null,null,{"$f":"ote!B17","v":"التحضيـــــــــري"},null,null,null,{"$f":"ote!C17","v":"- د -"}]
[]
["الأنشطـــــة",null,"لغة عربية",null,null,"رياضيات",null,null,"ت إسلامية",null,null,"ت علمية",null,null,"ت مدنية",null,null,"ت موسقية + تشكلية",null,null,null,null,"تاريخ / جغرافيا",null,null,null,"ت بدنية",null,null,"معالجة تربوبة",null,null,"المجموع"]
["عدد الحصص",null,11,null,null,6,null,null,2,null,null,2,null,null,1,null,null,1,null,null,null,null,2,null,null,null,1,null,null,2,null,null,{"$f":"SUM(C72:AF72)","v":28}]
["الــــــــــزمن",null,{"$f":"45*C72/1440","v":"08:15:00"},null,null,{"$f":"45*F72/1440","v":"04:30:00"},null,null,{"$f":"45*I72/1440","v":"01:30:00"},null,null,{"$f":"45*L72/1440","v":"01:30:00"},null,null,{"$f":"45*O72/1440","v":"00:45:00"},null,null,{"$f":"(45*R72/1440)","v":"00:45:00"},null,null,null,null,{"$f":"45*W72/1440","v":"01:30:00"},null,null,null,{"$f":"60*AA72/1440","v":"01:00:00"},null,null,{"$f":"45*AD72/1440","v":"01:30:00"},null,null,{"$f":"SUM(C73:AF73)","v":"21:15:00"}]
[]
["الأيـــــــــــأم","الفتــــــــــــــــــــــــــــرة الصبــــــــاحيـــــــــــــــــــــــــــــة",null,null,null,null,null,null,null,null,null,null,null,null,null,null,null,null,null,null,null,null,null,"الفتـــــــــــــــــــرة المســـــــــــــــائيـــــــــــــــــة"]
[null,"من 08:00    إلى      09:30",null,null,null,null,null,null,null,null,"من 09:45        إلى            12:00",null,null,null,null,null,null,null,null,null,null,null,null,"من 14:00               إلى                   16:15"]
[null,45,null,null,null,45,null,null,null,15,45,null,null,null,45,null,null,null,45,null,null,null,null,45,null,null,null,45,null,null,null,45]
["الأحـــد","فهم المنطوق",null,null,null,"التعبير الشفوي (صيغ و أساليب)",null,null,null,"إستـراحـــــــــــــــــــــــــــــــــــــــــــــــــــــة","رياضيات",null,null,null,"تربية إسلامية",null,null,null,null,null,null,null,null,"فرنسية",null,null,null,null,null,null,null,"معالجة لغة فرنسية"]
["الأثنين","الإنتاج الشفوي",null,null,null,"تاريخ",null,null,null,null,"رياضيات",null,null,null,"       قراءة       (أداء و فهم)",null,null,null,"معالجة رياضيات",null,null,null,null,"تربية مدنية",null,null,null,"تربية علمية",null,null,null,"جغرافيا"]
["الثلاثاء","قراءة (تقييم و دمج أفكار و معلومات) الظاهرة التركيبة النحوية",null,null,null,null,null,null,null,null,"فرنسية",null,null,null,null,null,null,null,null,null,null,null,null,"نشاطات لا صفية"]
["الأربعـاء","قراءة (تقييم المضمون و التركيبات)     الظاهرة الصرفية / الاملائية",null,null,null,null,null,null,null,null,"رياضيات",null,null,null,"تربية إسلامية",null,null,null,"محفوظات",null,null,null,null,"رياضيات",null,null,null,"تربية علمية",null,null,null,"تربية بدنية 60د"]
["الخميس","فرنسية",null,null,null,null,null,null,null,null,"رياضيات",null,null,null,"    مطالعة     موجهــة",null,null,null,"معالجة لغة عربية",null,null,null,null,"رياضيات",null,null,null,"الإنتاج الكتابي",null,null,null,"تربية فنية"]
[]
["      الأستاذ (ة):                                    السيد المـديــر :                                                              السيد المفتـش :"]

{"sheet":"السنة الاولى","index":2,"n_rows":84,"n_cols":35,"rows_kept":84,"cut":false,"hidden":false,"merged":[[0,0,0,34],[1,0,1,34],[3,4,3,8],[3,30,3,34],[4,0,4,3],[4,4,4,8],[5,3,5,8],[7,0,7,1],[7,2,7,4],[7,5,7,7],[7,8,7,10],[7,11,7,13],[7,14,7,16],[7,17,7,21],[7,22,7,25],[7,26,7,28],[7,29,7,31],[7,32,7,34],[8,32,8,34],[9,2,9,4],[9,5,9,7],[9,8,9,10],[9,11,9,13],[9,14,9,16],[9,17,9,21],[9,22,9,25],[9,26,9,28],[9,29,9,31],[9,32,9,34],[8,2,8,4],[8,5,8,7],[8,8,8,10],[8,11,8,13],[8,14,8,16],[8,17,8,21],[8,22,8,25],[8,26,8,28],[8,29,8,31],[11,0,13,0],[11,1,11,21],[11,22,13,22],[11,23,11,34],[12,1,12,8],[12,10,12,21],[12,23,12,34],[13,27,13,30],[13,31,13,34],[14,1,14,4],[14,5,14,8],[14,9,18,9],[14,10,14,13],[14,14,14,17],[14,18,14,21],[14,23,14,30],[14,31,14,34],[13,1,13,4],[13,5,13,8],[13,10,13,13],[13,14,13,17],[13,18,13,21],[13,23,13,26],[15,27,15,30],[15,31,15,34],[16,1,16,8],[16,10,16,17],[16,18,16,21],[16,23,16,34],[15,1,15,4],[15,5,15,8],[15,10,15,13],[15,14,15,17],[15,18,15,21],[15,23,15,26],[20,0,20,34],[21,0,21,34],[22,0,22,34],[24,4,24,8],[24,30,24,34],[25,0,25,3],[25,4,25,8],[17,31,17,34],[18,1,18,8],[18,10,18,13],[18,14,18,17],[18,18,18,21],[18,23,18,26],[18,27,18,30],[18,31,18,34],[17,1,17,8],[17,10,17,13],[17,14,17,17],[17,18,17,21],[17,23,17,26],[17,27,17,30],[26,3,26,8],[28,0,28,1],[28,2,28,4],[28,5,28,7],[28,8,28,10],[28,11,28,13],[28,14,28,16],[28,17,28,21],[28,22,28,25],[28,26,28,28],[28,29,28,31],[28,32,28,34],[29,2,29,4],[29,5,29,7],[29,8,29,10],[29,11,29,13],[29,14,29,16],[29,17,29,21],[29,22,29,25],[29,26,29,28],[29,29,29,31],[29,32,29,34],[30,32,30,34],[32,0,34,0],[32,1,32,21],[32,22,34,22],[32,23,32,34],[33,1,33,8],[33,10,33,21],[33,23,33,34],[34,27,34,30],[34,31,34,34],[30,2,30,4],[30,5,30,7],[30,8,30,10],[30,11,30,13],[30,14,30,16],[30,17,30,21],[30,22,30,25],[30,26,30,28],[30,29,30,31],[35,1,35,4],[35,5,35,8],[35,9,39,9],[35,10,35,13],[35,14,35,17],[35,18,35,21],[35,23,35,30],[35,31,35,34],[34,1,34,4],[34,5,34,8],[34,10,34,13],[34,14,34,17],[34,18,34,21],[34,23,34,26],[36,27,36,30],[36,31,36,34],[37,1,37,8],[37,10,37,17],[37,18,37,21],[37,23,37,34],[36,1,36,4],[36,5,36,8],[36,10,36,13],[36,14,36,17],[36,18,36,21],[36,23,36,26],[41,0,41,34],[42,0,42,34],[43,0,43,34],[45,4,45,8],[45,30,45,34],[46,0,46,3],[46,4,46,8],[38,31,38,34],[39,1,39,8],[39,10,39,13],[39,14,39,17],[39,18,39,21],[39,23,39,26],[39,27,39,30],[39,31,39,34],[38,1,38,8],[38,10,38,13],[38,14,38,17],[38,18,38,21],[38,23,38,26],[38,27,38,30],[47,3,47,8],[49,0,49,1],[49,2,49,4],[49,5,49,7],[49,8,49,10],[49,11,49,13],[49,14,49,16],[49,17,49,21],[49,22,49,25],[49,26,49,28],[49,29,49,31],[49,32,49,34],[50,2,50,4],[50,5,50,7],[50,8,50,10],[50,11,50,13],[50,14,50,16],[50,17,50,21],[50,22,50,25],[50,26,50,28],[50,29,50,31],[50,32,50,34],[51,32,51,34],[53,0,55,0],[53,1,53,21],[53,22,55,22],[53,23,53,34],[54,1,54,8],[54,10,54,21],[54,23,54,34],[55,27,55,30],[55,31,55,34],[51,2,51,4],[51,5,51,7],[51,8,51,10],[51,11,51,13],[51,14,51,16],[51,17,51,21],[51,22,51,25],[51,26,51,28],[51,29,51,31],[56,1,56,4],[56,5,56,8],[56,9,60,9],[56,10,56,13],[56,14,56,17],[56,18,56,21],[56,23,56,30],[56,31,56,34],[55,1,55,4],[55,5,55,8],[55,10,55,13],[55,14,55,17],[55,18,55,21],[55,23,55,26],[57,27,57,30],[57,31,57,34],[58,1,58,8],[58,10,58,17],[58,18,58,21],[58,23,58,34],[57,1,57,4],[57,5,57,8],[57,10,57,13],[57,14,57,17],[57,18,57,21],[57,23,57,26],[62,0,62,34],[63,0,63,34],[64,0,64,34],[66,4,66,8],[66,30,66,34],[67,0,67,3],[67,4,67,8],[59,31,59,34],[60,1,60,8],[60,10,60,13],[60,14,60,17],[60,18,60,21],[60,23,60,26],[60,27,60,30],[60,31,60,34],[59,1,59,8],[59,10,59,13],[59,14,59,17],[59,18,59,21],[59,23,59,26],[59,27,59,30],[68,3,68,8],[70,0,70,1],[70,2,70,4],[70,5,70,7],[70,8,70,10],[70,11,70,13],[70,14,70,16],[70,17,70,21],[70,22,70,25],[70,26,70,28],[70,29,70,31],[70,32,70,34],[71,2,71,4],[71,5,71,7],[71,8,71,10],[71,11,71,13],[71,14,71,16],[71,17,71,21],[71,22,71,25],[71,26,71,28],[71,29,71,31],[71,32,71,34],[72,32,72,34],[74,0,76,0],[74,1,74,21],[74,22,76,22],[74,23,74,34],[75,1,75,8],[75,10,75,21],[75,23,75,34],[76,27,76,30],[76,31,76,34],[72,2,72,4],[72,5,72,7],[72,8,72,10],[72,11,72,13],[72,14,72,16],[72,17,72,21],[72,22,72,25],[72,26,72,28],[72,29,72,31],[76,1,76,4],[76,5,76,8],[76,10,76,13],[76,14,76,17],[76,18,76,21],[76,23,76,26],[78,31,78,34],[79,1,79,8],[79,10,79,17],[79,18,79,21],[79,23,79,34],[78,1,78,4],[78,5,78,8],[78,10,78,13],[78,14,78,17],[78,18,78,21],[77,5,77,8],[77,9,81,9],[77,10,77,13],[77,14,77,17],[77,18,77,21],[77,23,77,30],[77,31,77,34],[78,27,78,30],[78,23,78,26],[83,0,83,34],[5,29,5,33],[4,29,4,34],[26,29,26,33],[25,29,25,34],[46,29,46,34],[47,29,47,33],[67,29,67,34],[68,29,68,33],[80,31,80,34],[81,1,81,8],[81,10,81,13],[81,14,81,17],[81,18,81,21],[81,23,81,26],[81,27,81,30],[81,31,81,34],[80,1,80,8],[80,10,80,13],[80,14,80,17],[80,18,80,21],[80,23,80,26],[80,27,80,30],[77,1,77,4]]}
["الجمهورية الجزائرية الديمقراطية الشعبية"]
["وزرارة التربية الوطنية"]
[]
["مديرية التربية لولايــــة : ",null,null,null,{"$f":"ote!D8","v":"الجزائر"},null,null,null,null,null,null,null,null,null,null,null,null,null,null,null,null,null,null,null,null,"الســـــنة الدراسيــة : ",null,null,null,null,{"$f":"ote!D11","v":"2019/2018"}]
["مفتشية التعليم الإبتدائي :",null,null,null,{"$f":"ote!D9","v":"براقي"},null,null,null,null,null,null,null,null,null,null,null,null,null,null,null,null,null,null,null,null,"الأستـــــــاذ(ة) :",null,null,null,{"$f":"ote!D18","v":"الراشدي 5"}]
["المدرسة الإبتدائية : ",null,null,{"$f":"ote!D10","v":"البشير الابراهيمي"},null,null,null,null,null,null,null,null,null,null,null,null,null,null,null,null,null,null,null,null,null,"الفـــــــــــــــوج :",null,null,null,{"$f":"ote!B18","v":"السنــــــة الأولــــى"},null,null,null,null,{"$f":"ote!C18","v":"- أ -"}]
[]
["الأنشطـــــة",null,"لغة عربية",null,null,"رياضيات",null,null,"ت إسلامية",null,null,"ت علمية",null,null,"ت مدنية",null,null,"ت موسقية + تشكلية",null,null,null,null,"تاريخ / جغرافيا",null,null,null,"ت بدنية",null,null,"معالجة تربوبة",null,null,"المجموع"]
["عدد الحصص",null,11,null,null,6,null,null,2,null,null,2,null,null,1,null,null,1,null,null,null,null,2,null,null,null,1,null,null,2,null,null,{"$f":"SUM(C9:AF9)","v":28}]
["الــــــــــزمن",null,{"$f":"45*C9/1440","v":"08:15:00"},null,null,{"$f":"45*F9/1440","v":"04:30:00"},null,null,{"$f":"45*I9/1440","v":"01:30:00"},null,null,{"$f":"45*L9/1440","v":"01:30:00"},null,null,{"$f":"45*O9/1440","v":"00:45:00"},null,null,{"$f":"(45*R9/1440)","v":"00:45:00"},null,null,null,null,{"$f":"45*W9/1440","v":"01:30:00"},null,null,null,{"$f":"60*AA9/1440","v":"01:00:00"},null,null,{"$f":"45*AD9/1440","v":"01:30:00"},null,null,{"$f":"SUM(C10:AF10)","v":"21:15:00"}]
[]
["الأيـــــــــــأم","الفتــــــــــــــــــــــــــــرة الصبــــــــاحيـــــــــــــــــــــــــــــة",null,null,null,null,null,null,null,null,null,null,null,null,null,null,null,null,null,null,null,null,null,"الفتـــــــــــــــــــرة المســـــــــــــــائيـــــــــــــــــة"]
[null,"من 08:00    إلى      09:30",null,null,null,null,null,null,null,null,"من 09:45        إلى            12:00",null,null,null,null,null,null,null,null,null,null,null,null,"من 14:00               إلى                   16:15"]
[null,45,null,null,null,45,null,null,null,15,45,null,null,null,45,null,null,null,45,null,null,null,null,45,null,null,null,45,null,null,null,45]
["الأحـــد","فهم المنطوق",null,null,null,"التعبير الشفوي (صيغ و أساليب)",null,null,null,"إستـراحـــــــــــــــــــــــــــــــــــــــــــــــــــــة","رياضيات",null,null,null,"تربية إسلامية",null,null,null,null,null,null,null,null,"فرنسية",null,null,null,null,null,null,null,"معالجة  فرنسية"]
["الأثنين","الإنتاج الشفوي",null,null,null,"تاريخ",null,null,null,null,"رياضيات",null,null,null,"       قراءة       (أداء و فهم)",null,null,null,"معالجة رياضيات",null,null,null,null,"تربية مدنية",null,null,null,"تربية علمية",null,null,null,"جغرافيا"]
["الثلاثاء","قراءة (تقييم و دمج أفكار و معلومات) الظاهرة التركيبة النحوية",null,null,null,null,null,null,null,null,"فرنسية",null,null,null,null,null,null,null,null,null,null,null,null,"نشاطات لا صفية"]
["الأربعـاء","قراءة (تقييم المضمون و التركيبات)     الظاهرة الصرفية / الاملائية",null,null,null,null,null,null,null,null,"رياضيات",null,null,null,"تربية إسلامية",null,null,null,"محفوظات",null,null,null,null,"رياضيات",null,null,null,"تربية علمية",null,null,null,"تربية بدنية 60د"]
["الخميس","فرنسية",null,null,null,null,null,null,null,null,"رياضيات",null,null,null,"    مطالعة     موجهــة",null,null,null,"معالجة عربية",null,null,null,null,"رياضيات",null,null,null,"الإنتاج الكتابي",null,null,null,"تربية فنية"]
[]
["      الأستاذ (ة):                                                          السيد المـديــر :                                                                           السيد المفتـش :"]
["الجمهورية الجزائرية الديمقراطية الشعبية"]
["وزرارة التربية الوطنية"]
[]
["مديرية التربية لولايــــة : ",null,null,null,{"$f":"ote!D8","v":"الجزائر"},null,null,null,null,null,null,null,null,null,null,null,null,null,null,null,null,null,null,null,null,"الســـــنة الدراسيــة : ",null,null,null,null,{"$f":"ote!D11","v":"2019/2018"}]
["مفتشية التعليم الإبتدائي :",null,null,null,{"$f":"ote!D9","v":"براقي"},null,null,null,null,null,null,null,null,null,null,null,null,null,null,null,null,null,null,null,null,"الأستـــــــاذ(ة) :",null,null,null,{"$f":"ote!D19","v":"الراشدي 6"}]
["المدرسة الإبتدائية : ",null,null,{"$f":"ote!D10","v":"البشير الابراهيمي"},null,null,null,null,null,null,null,null,null,null,null,null,null,null,null,null,null,null,null,null,null,"الفـــــــــــــــوج :",null,null,null,{"$f":"ote!B19","v":"السنــــــة الأولــــى"},null,null,null,null,{"$f":"ote!C19","v":"- ب -"}]
[]
["الأنشطـــــة",null,"لغة عربية",null,null,"رياضيات",null,null,"ت إسلامية",null,null,"ت علمية",null,null,"ت مدنية",null,null,"ت موسقية + تشكلية",null,null,null,null,"تاريخ / جغرافيا",null,null,null,"ت بدنية",null,null,"معالجة تربوبة",null,null,"المجموع"]
["عدد الحصص",null,11,null,null,6,null,null,2,null,null,2,null,null,1,null,null,1,null,null,null,null,2,null,null,null,1,null,null,2,null,null,{"$f":"SUM(C30:AF30)","v":28}]
["الــــــــــزمن",null,{"$f":"45*C30/1440","v":"08:15:00"},null,null,{"$f":"45*F30/1440","v":"04:30:00"},null,null,{"$f":"45*I30/1440","v":"01:30:00"},null,null,{"$f":"45*L30/1440","v":"01:30:00"},null,null,{"$f":"45*O30/1440","v":"00:45:00"},null,null,{"$f":"(45*R30/1440)","v":"00:45:00"},null,null,null,null,{"$f":"45*W30/1440","v":"01:30:00"},null,null,null,{"$f":"60*AA30/1440","v":"01:00:00"},null,null,{"$f":"45*AD30/1440","v":"01:30:00"},null,null,{"$f":"SUM(C31:AF31)","v":"21:15:00"}]
[]
["الأيـــــــــــأم","الفتــــــــــــــــــــــــــــرة الصبــــــــاحيـــــــــــــــــــــــــــــة",null,null,null,null,null,null,null,null,null,null,null,null,null,null,null,null,null,null,null,null,null,"الفتـــــــــــــــــــرة المســـــــــــــــائيـــــــــــــــــة"]
[null,"من 08:00    إلى      09:30",null,null,null,null,null,null,null,null,"من 09:45        إلى            12:00",null,null,null,null,null,null,null,null,null,null,null,null,"من 14:00               إلى                   16:15"]
[null,45,null,null,null,45,null,null,null,15,45,null,null,null,45,null,null,null,45,null,null,null,null,45,null,null,null,45,null,null,null,45]
["الأحـــد","فهم المنطوق",null,null,null,"التعبير الشفوي (صيغ و أساليب)",null,null,null,"إستـراحـــــــــــــــــــــــــــــــــــــــــــــــــــــة","رياضيات",null,null,null,"تربية إسلامية",null,null,null,null,null,null,null,null,"فرنسية",null,null,null,null,null,null,null,"معالجة لغة فرنسية"]
["الأثنين","الإنتاج الشفوي",null,null,null,"تاريخ",null,null,null,null,"رياضيات",null,null,null,"       قراءة       (أداء و فهم)",null,null,null,"معالجة رياضيات",null,null,null,null,"تربية مدنية",null,null,null,"تربية علمية",null,null,null,"جغرافيا"]
["الثلاثاء","قراءة (تقييم و دمج أفكار و معلومات) الظاهرة التركيبة النحوية",null,null,null,null,null,null,null,null,"فرنسية",null,null,null,null,null,null,null,null,null,null,null,null,"نشاطات لا صفية"]
["الأربعـاء","قراءة (تقييم المضمون و التركيبات)     الظاهرة الصرفية / الاملائية",null,null,null,null,null,null,null,null,"رياضيات",null,null,null,"تربية إسلامية",null,null,null,"محفوظات",null,null,null,null,"رياضيات",null,null,null,"تربية علمية",null,null,null,"تربية بدنية 60د"]
["الخميس","فرنسية",null,null,null,null,null,null,null,null,"رياضيات",null,null,null,"    مطالعة     موجهــة",null,null,null,"معالجة لغة عربية",null,null,null,null,"رياضيات",null,null,null,"الإنتاج الكتابي",null,null,null,"تربية فنية"]
[]
["      الأستاذ (ة):                                                          السيد المـديــر :                                                                           السيد المفتـش :"]
["الجمهورية الجزائرية الديمقراطية الشعبية"]
["وزرارة التربية الوطنية"]
[]
["مديرية التربية لولايــــة : ",null,null,null,{"$f":"ote!D8","v":"الجزائر"},null,null,null,null,null,null,null,null,null,null,null,null,null,null,null,null,null,null,null,null,"الســـــنة الدراسيــة : ",null,null,null,null,{"$f":"ote!D11","v":"2019/2018"}]
["مفتشية التعليم الإبتدائي :",null,null,null,{"$f":"ote!D9","v":"براقي"},null,null,null,null,null,null,null,null,null,null,null,null,null,null,null,null,null,null,null,null,"الأستـــــــاذ(ة) :",null,null,null,{"$f":"ote!D20","v":"الراشدي 7"}]
["المدرسة الإبتدائية : ",null,null,{"$f":"ote!D10","v":"البشير الابراهيمي"},null,null,null,null,null,null,null,null,null,null,null,null,null,null,null,null,null,null,null,null,null,"الفـــــــــــــــوج :",null,null,null,{"$f":"ote!B20","v":"السنــــــة الأولــــى"},null,null,null,null,{"$f":"ote!C20","v":"- ج -"}]
[]
["الأنشطـــــة",null,"لغة عربية",null,null,"رياضيات",null,null,"ت إسلامية",null,null,"ت علمية",null,null,"ت مدنية",null,null,"ت موسقية + تشكلية",null,null,null,null,"تاريخ / جغرافيا",null,null,null,"ت بدنية",null,null,"معالجة تربوبة",null,null,"المجموع"]
["عدد الحصص",null,11,null,null,6,null,null,2,null,null,2,null,null,1,null,null,1,null,null,null,null,2,null,null,null,1,null,null,2,null,null,{"$f":"SUM(C51:AF51)","v":28}]
["الــــــــــزمن",null,{"$f":"45*C51/1440","v":"08:15:00"},null,null,{"$f":"45*F51/1440","v":"04:30:00"},null,null,{"$f":"45*I51/1440","v":"01:30:00"},null,null,{"$f":"45*L51/1440","v":"01:30:00"},null,null,{"$f":"45*O51/1440","v":"00:45:00"},null,null,{"$f":"(45*R51/1440)","v":"00:45:00"},null,null,null,null,{"$f":"45*W51/1440","v":"01:30:00"},null,null,null,{"$f":"60*AA51/1440","v":"01:00:00"},null,null,{"$f":"45*AD51/1440","v":"01:30:00"},null,null,{"$f":"SUM(C52:AF52)","v":"21:15:00"}]
[]
["الأيـــــــــــأم","الفتــــــــــــــــــــــــــــرة الصبــــــــاحيـــــــــــــــــــــــــــــة",null,null,null,null,null,null,null,null,null,null,null,null,null,null,null,null,null,null,null,null,null,"الفتـــــــــــــــــــرة المســـــــــــــــائيـــــــــــــــــة"]
[null,"من 08:00    إلى      09:30",null,null,null,null,null,null,null,null,"من 09:45        إلى            12:00",null,null,null,null,null,null,null,null,null,null,null,null,"من 14:00               إلى                   16:15"]
[null,45,null,null,null,45,null,null,null,15,45,null,null,null,45,null,null,null,45,null,null,null,null,45,null,null,null,45,null,null,null,45]
["الأحـــد","فهم المنطوق",null,null,null,"التعبير الشفوي (صيغ و أساليب)",null,null,null,"إستـراحـــــــــــــــــــــــــــــــــــــــــــــــــــــة","رياضيات",null,null,null,"تربية إسلامية",null,null,null,null,null,null,null,null,"فرنسية",null,null,null,null,null,null,null,"معالجة لغة فرنسية"]
["الأثنين","الإنتاج الشفوي",null,null,null,"تاريخ",null,null,null,null,"رياضيات",null,null,null,"       قراءة       (أداء و فهم)",null,null,null,"معالجة رياضيات",null,null,null,null,"تربية مدنية",null,null,null,"تربية علمية",null,null,null,"جغرافيا"]
["الثلاثاء","قراءة (تقييم و دمج أفكار و معلومات) الظاهرة التركيبة النحوية",null,null,null,null,null,null,null,null,"فرنسية",null,null,null,null,null,null,null,null,null,null,null,null,"نشاطات لا صفية"]
["الأربعـاء","قراءة (تقييم المضمون و التركيبات)     الظاهرة الصرفية / الاملائية",null,null,null,null,null,null,null,null,"رياضيات",null,null,null,"تربية إسلامية",null,null,null,"محفوظات",null,null,null,null,"رياضيات",null,null,null,"تربية علمية",null,null,null,"تربية بدنية 60د"]
["الخميس","فرنسية",null,null,null,null,null,null,null,null,"رياضيات",null,null,null,"    مطالعة     موجهــة",null,null,null,"معالجة لغة عربية",null,null,null,null,"رياضيات",null,null,null,"الإنتاج الكتابي",null,null,null,"تربية فنية"]
[]
["      الأستاذ (ة):                                                          السيد المـديــر :                                                                           السيد المفتـش :"]
["الجمهورية الجزائرية الديمقراطية الشعبية"]
["وزرارة التربية الوطنية"]
[]
["مديرية التربية لولايــــة : ",null,null,null,{"$f":"ote!D8","v":"الجزائر"},null,null,null,null,null,null,null,null,null,null,null,null,null,null,null,null,null,null,null,null,"الســـــنة الدراسيــة : ",null,null,null,null,{"$f":"ote!D11","v":"2019/2018"}]
["مفتشية التعليم الإبتدائي :",null,null,null,{"$f":"ote!D9","v":"براقي"},null,null,null,null,null,null,null,null,null,null,null,null,null,null,null,null,null,null,null,null,"الأستـــــــاذ(ة) :",null,null,null,{"$f":"ote!D21","v":"الراشدي 8"}]
["المدرسة الإبتدائية : ",null,null,{"$f":"ote!D10","v":"البشير الابراهيمي"},null,null,null,null,null,null,null,null,null,null,null,null,null,null,null,null,null,null,null,null,null,"الفـــــــــــــــوج :",null,null,null,{"$f":"ote!B21","v":"السنــــــة الأولــــى"},null,null,null,null,{"$f":"ote!C21","v":"- د -"}]
[]
["الأنشطـــــة",null,"لغة عربية",null,null,"رياضيات",null,null,"ت إسلامية",null,null,"ت علمية",null,null,"ت مدنية",null,null,"ت موسقية + تشكلية",null,null,null,null,"تاريخ / جغرافيا",null,null,null,"ت بدنية",null,null,"معالجة تربوبة",null,null,"المجموع"]
["عدد الحصص",null,11,null,null,6,null,null,2,null,null,2,null,null,1,null,null,1,null,null,null,null,2,null,null,null,1,null,null,2,null,null,{"$f":"SUM(C72:AF72)","v":28}]
["الــــــــــزمن",null,{"$f":"45*C72/1440","v":"08:15:00"},null,null,{"$f":"45*F72/1440","v":"04:30:00"},null,null,{"$f":"45*I72/1440","v":"01:30:00"},null,null,{"$f":"45*L72/1440","v":"01:30:00"},null,null,{"$f":"45*O72/1440","v":"00:45:00"},null,null,{"$f":"(45*R72/1440)","v":"00:45:00"},null,null,null,null,{"$f":"45*W72/1440","v":"01:30:00"},null,null,null,{"$f":"60*AA72/1440","v":"01:00:00"},null,null,{"$f":"45*AD72/1440","v":"01:30:00"},null,null,{"$f":"SUM(C73:AF73)","v":"21:15:00"}]
[]
["الأيـــــــــــأم","الفتــــــــــــــــــــــــــــرة الصبــــــــاحيـــــــــــــــــــــــــــــة",null,null,null,null,null,null,null,null,null,null,null,null,null,null,null,null,null,null,null,null,null,"الفتـــــــــــــــــــرة المســـــــــــــــائيـــــــــــــــــة"]
[null,"من 08:00    إلى      09:30",null,null,null,null,null,null,null,null,"من 09:45        إلى            12:00",null,null,null,null,null,null,null,null,null,null,null,null,"من 14:00               إلى                   16:15"]
[null,45,null,null,null,45,null,null,null,15,45,null,null,null,45,null,null,null,45,null,null,null,null,45,null,null,null,45,null,null,null,45]
["الأحـــد","فهم المنطوق",null,null,null,"التعبير الشفوي (صيغ و أساليب)",null,null,null,"إستـراحـــــــــــــــــــــــــــــــــــــــــــــــــــــة","رياضيات",null,null,null,"تربية إسلامية",null,null,null,null,null,null,null,null,"فرنسية",null,null,null,null,null,null,null,"معالجة لغة فرنسية"]
["الأثنين","الإنتاج الشفوي",null,null,null,"تاريخ",null,null,null,null,"رياضيات",null,null,null,"       قراءة       (أداء و فهم)",null,null,null,"معالجة رياضيات",null,null,null,null,"تربية مدنية",null,null,null,"تربية علمية",null,null,null,"جغرافيا"]
["الثلاثاء","قراءة (تقييم و دمج أفكار و معلومات) الظاهرة التركيبة النحوية",null,null,null,null,null,null,null,null,"فرنسية",null,null,null,null,null,null,null,null,null,null,null,null,"نشاطات لا صفية"]
["الأربعـاء","قراءة (تقييم المضمون و التركيبات)     الظاهرة الصرفية / الاملائية",null,null,null,null,null,null,null,null,"رياضيات",null,null,null,"تربية إسلامية",null,null,null,"محفوظات",null,null,null,null,"رياضيات",null,null,null,"تربية علمية",null,null,null,"تربية بدنية 60د"]
["الخميس","فرنسية",null,null,null,null,null,null,null,null,"رياضيات",null,null,null,"    مطالعة     موجهــة",null,null,null,"معالجة لغة عربية",null,null,null,null,"رياضيات",null,null,null,"الإنتاج الكتابي",null,null,null,"تربية فنية"]
[]
["      الأستاذ (ة):                                                          السيد المـديــر :                                                                           السيد المفتـش :"]